bitfinex/quotes_BTCUSD_20250328
["timestamp","ask_amount","ask_price","bid_price","bid_amount"]
[1743174507050,0.01214414,84159.0,84155.0,0.237656]
[1743174507262,0.00100027,84159.0,84158.0,0.001]
[1743174507466,0.00100027,84159.0,84158.0,0.002]
[1743174507664,0.00100027,84159.0,84158.0,0.25153]
[1743174508000,2.7e-07,84159.0,84158.0,0.24953]
[1743174508183,2.7e-07,84159.0,84158.0,0.237648]
[1743174508390,0.00600027,84159.0,84158.0,0.237648]
[1743174508589,0.00400027,84159.0,84158.0,0.237648]
[1743174508790,2.7e-07,84159.0,84158.0,0.237648]
[1743174508991,0.00100027,84159.0,84158.0,0.24953]
[1743174509193,0.00400027,84159.0,84156.0,0.237653]
[1743174509428,0.00400027,84159.0,84154.0,0.249539]
[1743174509845,0.00400027,84159.0,84156.0,0.237652]
[1743174510046,0.00400027,84159.0,84154.0,0.011882]
[1743174510250,0.00400027,84159.0,84151.0,0.249549]
[1743174510449,0.00400027,84159.0,84150.0,0.237668]
[1743174510450,0.00285276,84158.0,84150.0,0.237668]
[1743174510671,0.00285276,84158.0,84149.0,0.249555]
[1743174510876,0.00285276,84158.0,84150.0,0.237668]
[1743174511077,0.00285276,84158.0,84145.0,0.011884]
[1743174511251,0.00285276,84158.0,84142.0,0.011884]
[1743174511452,0.025,84154.0,84139.0,0.0001688]
[1743174511650,0.3,84150.0,84139.0,0.0001688]
[1743174511894,0.549559,84148.0,84139.0,0.0001688]
[1743174512095,0.66381664,84148.0,84139.0,0.0001688]
[1743174512608,0.4193149,84148.0,84139.0,0.0001688]
[1743174513527,0.54811339,84148.0,84139.0,0.0001688]
[1743174514483,0.43885575,84148.0,84139.0,0.0001688]
[1743174514727,0.8420149,84148.0,84141.0,0.011884]
[1743174514944,0.43275726,84148.0,84141.0,0.011884]
[1743174515072,0.43275726,84148.0,84143.0,0.23769]
[1743174515273,0.73275726,84148.0,84143.0,0.23769]
[1743174515700,0.72275726,84148.0,84146.0,0.237681]
[1743174515904,0.72275726,84148.0,84142.0,0.237692]
[1743174516139,0.72275726,84148.0,84143.0,0.23769]
[1743174516344,0.30505726,84148.0,84143.0,0.23769]
[1743174516521,0.31005726,84148.0,84143.0,0.23769]
[1743174516952,0.31005726,84148.0,84144.0,0.237686]
[1743174517119,0.31005726,84148.0,84145.0,0.237684]
[1743174517959,0.30905726,84148.0,84135.0,0.249595]
[1743174518214,0.4233149,84148.0,84135.0,0.23771]
[1743174518430,0.47215438,84148.0,84129.0,0.237728]
[1743174518601,0.44185575,84148.0,84132.0,0.011886]
[1743174518983,0.44185575,84148.0,84133.0,0.237718]
[1743174519392,0.43385575,84148.0,84133.0,0.237718]
[1743174519571,0.43385575,84148.0,84135.0,0.237713]
[1743174519780,0.43785575,84148.0,84135.0,0.237713]
[1743174520322,0.44285575,84148.0,84134.0,0.237713]
[1743174520524,0.44285575,84148.0,84123.0,0.237745]
[1743174520733,0.48953423,84148.0,84130.0,0.237726]
[1743174520944,0.48953423,84148.0,84132.0,0.237721]
[1743174521112,0.48953423,84148.0,84134.0,0.237714]
[1743174521318,0.86055575,84148.0,84134.0,0.237714]
[1743174521722,0.86055575,84148.0,84132.0,0.237721]
[1743174521930,0.86055575,84148.0,84133.0,0.237717]
[1743174522107,0.86055575,84148.0,84136.0,0.237708]
[1743174522313,0.86055575,84148.0,84134.0,0.237713]
[1743174522516,0.86055575,84148.0,84132.0,0.237721]
[1743174522878,0.86055575,84148.0,84132.0,0.249604]
[1743174523012,0.86055575,84148.0,84133.0,0.011885]
[1743174523435,0.8460149,84148.0,84135.0,0.249595]
[1743174523643,0.8460149,84148.0,84136.0,0.23771]
[1743174523850,0.8460149,84148.0,84135.0,0.237712]
[1743174524169,0.8460149,84148.0,84131.0,0.249608]
[1743174524170,0.86055575,84148.0,84106.0,0.475587]
[1743174524375,0.86055575,84148.0,84128.0,0.237731]
[1743174524578,0.86055575,84148.0,84129.0,0.237729]
[1743174525362,0.86055575,84148.0,84117.0,0.011888]
[1743174525560,0.8460149,84148.0,84132.0,0.23772]
[1743174525761,0.8460149,84148.0,84133.0,0.237717]
[1743174525967,0.84095764,84148.0,84137.0,0.237706]
[1743174526207,0.84583525,84148.0,84134.0,0.011885]
[1743174526413,0.84583525,84148.0,84132.0,0.249605]
[1743174526629,0.84583525,84148.0,84126.0,0.237735]
[1743174526831,0.94330417,84148.0,84127.0,0.237734]
[1743174526971,0.95784502,84148.0,84127.0,0.237733]
[1743174527178,0.8603761,84148.0,84128.0,0.237732]
[1743174527498,0.8603761,84148.0,84129.0,0.237727]
[1743174527706,0.8603761,84148.0,84130.0,0.237727]
[1743174528224,0.8603761,84148.0,84126.0,0.237736]
[1743174528430,0.8603761,84148.0,84127.0,0.237733]
[1743174528633,0.8603761,84148.0,84128.0,0.23773]
[1743174529036,0.8603761,84148.0,84128.0,0.011886]
[1743174529326,0.8603761,84148.0,84130.0,0.237726]
[1743174529558,0.8603761,84148.0,84134.0,0.249599]
[1743174529559,0.84583525,84148.0,84134.0,0.249599]
[1743174529754,0.42813525,84148.0,84136.0,0.23771]
[1743174529964,0.42813525,84148.0,84137.0,0.237707]
[1743174530134,0.42813525,84148.0,84134.0,0.237714]
[1743174530340,0.42813525,84148.0,84133.0,0.011885]
[1743174530546,0.42813525,84148.0,84134.0,0.011885]
[1743174530753,0.42813525,84148.0,84137.0,0.237706]
[1743174530932,0.42813525,84148.0,84138.0,0.237702]
[1743174531337,0.42813525,84148.0,84139.0,0.2378678]
[1743174531519,0.42813525,84148.0,84139.0,0.0001688]
[1743174532787,0.42813525,84148.0,84141.0,0.237695]
[1743174533425,0.42813525,84148.0,84140.0,0.011884]
[1743174533426,0.01387761,84148.0,84147.0,0.2378477]
[1743174533667,0.01387761,84148.0,84147.0,0.3265307]
[1743174533905,0.009,84148.0,84147.0,0.3265307]
[1743174534353,0.004,84148.0,84147.0,0.3265307]
[1743174535004,0.02392902,84151.0,84150.0,0.249553]
[1743174536367,0.02292902,84151.0,84150.0,0.249553]
[1743174536730,0.02492902,84151.0,84150.0,0.249553]
[1743174537331,0.002,84151.0,84150.0,0.249553]
[1743174538424,0.002,84151.0,84148.0,0.237674]
[1743174538606,0.002,84151.0,84150.0,0.249553]
[1743174539018,0.02332068,84152.0,84151.0,0.249551]
[1743174540298,0.02332068,84152.0,84147.0,0.0120517]
[1743174540299,0.02332068,84152.0,84147.0,0.0001687]
[1743174540527,0.02617344,84152.0,84147.0,0.2378447]
[1743174540689,0.02632068,84152.0,84147.0,0.0120517]
[1743174540902,0.00436555,84151.0,84149.0,0.237673]
[1743174541092,0.02194558,84151.0,84147.0,0.0120517]
[1743174541311,0.11425764,84150.0,84147.0,0.0001687]
[1743174541472,0.00436555,84149.0,84148.0,0.237676]
[1743174541667,0.00436555,84149.0,84147.0,0.2378467]
[1743174541867,0.00436555,84149.0,84148.0,0.249559]
[1743174542069,0.02294558,84151.0,84150.0,0.249553]
[1743174542515,0.02732068,84152.0,84151.0,0.249551]
[1743174542889,0.02332068,84152.0,84151.0,0.249551]
[1743174544027,0.04527723,84152.0,84151.0,0.249551]
[1743174544609,0.04517163,84152.0,84151.0,0.249551]
[1743174545061,0.02321508,84152.0,84151.0,0.249551]
[1743174545826,0.02921508,84152.0,84151.0,0.249551]
[1743174546002,0.02921508,84152.0,84151.0,0.332051]
[1743174546672,0.02521508,84152.0,84151.0,0.332051]
[1743174547135,0.02821508,84152.0,84151.0,0.332051]
[1743174547339,0.005,84152.0,84151.0,0.44630864]
[1743174547539,0.003,84152.0,84151.0,0.44630864]
[1743174547713,0.003,84152.0,84151.0,0.332051]
[1743174548279,0.003,84152.0,84151.0,0.44630864]
[1743174548498,0.00033787,84159.0,84158.0,0.24953]
[1743174548695,0.00033787,84159.0,84158.0,0.36378764]
[1743174549748,0.00033787,84159.0,84158.0,0.24953]
[1743174550849,0.00033787,84159.0,84158.0,0.25053]
[1743174551299,0.00033787,84159.0,84158.0,0.24953]
[1743174551722,0.00033787,84159.0,84158.0,0.25153]
[1743174553646,0.00285276,84170.0,84160.0,0.237642]
[1743174553849,0.00010022,84165.0,84160.0,0.237642]
[1743174554057,0.01182534,84165.0,84160.0,0.237642]
[1743174554262,0.00388569,84164.0,84160.0,0.237642]
[1743174554472,0.00388569,84164.0,84151.0,0.0001689]
[1743174554473,0.11425764,84163.0,84151.0,0.0001689]
[1743174554629,0.3,84160.0,84151.0,0.0001689]
[1743174554836,0.3764,84158.0,84151.0,0.0001689]
[1743174555055,0.3,84156.0,84151.0,0.0001689]
[1743174555256,0.3,84154.0,84151.0,0.0001689]
[1743174555456,0.3,84152.0,84151.0,0.0001689]
[1743174555657,0.41425764,84152.0,84151.0,0.0001689]
[1743174555923,0.41813354,84152.0,84151.0,0.0001689]
[1743174556586,0.0038759,84152.0,84151.0,0.2497199]
[1743174556797,0.02583923,84152.0,84151.0,0.3761199]
[1743174557001,0.02396333,84152.0,84151.0,0.3761199]
[1743174557412,0.02396333,84152.0,84151.0,0.3303199]
[1743174558051,0.02396333,84152.0,84151.0,0.2497199]
[1743174559621,0.002,84152.0,84151.0,0.2497199]
[1743174559835,0.02403933,84153.0,84152.0,0.249548]
[1743174560475,0.04603701,84153.0,84152.0,0.249548]
[1743174561298,0.04603701,84153.0,84152.0,0.251548]
[1743174562157,0.04703701,84153.0,84152.0,0.251548]
[1743174562737,0.02299768,84153.0,84152.0,0.251548]
[1743174566552,0.02299768,84153.0,84152.0,0.002]
[1743174566752,0.02299768,84153.0,84152.0,0.239665]
[1743174566961,0.02299768,84153.0,84152.0,0.002]
[1743174567166,0.13725532,84153.0,84152.0,0.002]
[1743174567376,0.14397799,84153.0,84152.0,0.002]
[1743174567633,0.15562504,84153.0,84152.0,0.002]
[1743174567837,0.15277228,84153.0,84151.0,0.0001689]
[1743174568038,0.11425764,84152.0,84151.0,0.0001689]
[1743174568872,0.11812755,84152.0,84151.0,0.0001689]
[1743174569670,0.14012523,84152.0,84151.0,0.0001689]
[1743174569881,0.02786759,84152.0,84151.0,0.2497199]
[1743174570285,0.02399768,84152.0,84151.0,0.2497199]
[1743174572400,0.02199768,84152.0,84151.0,0.2497199]
[1743174573771,0.02199768,84152.0,84151.0,0.2517199]
[1743174574018,0.02199768,84152.0,84151.0,0.2497199]
[1743174574460,0.02199768,84152.0,84151.0,0.2507199]
[1743174574799,0.02199768,84152.0,84151.0,0.2497199]
[1743174575384,0.02399768,84152.0,84151.0,0.0001689]
[1743174575566,0.03066699,84152.0,84151.0,0.0001689]
[1743174575765,0.02399768,84152.0,84151.0,0.0001689]
[1743174576329,0.02399768,84152.0,84151.0,0.2378369]
[1743174577006,0.02399768,84152.0,84151.0,0.2497199]
[1743174577657,0.02399768,84152.0,84151.0,0.0001689]
[1743174578459,0.44110808,84152.0,84151.0,0.0001689]
[1743174578663,0.43825532,84152.0,84151.0,0.0001689]
[1743174578867,0.44205982,84152.0,84151.0,0.0001689]
[1743174579305,0.44005982,84152.0,84151.0,0.0001689]
[1743174579683,0.15391279,84152.0,84151.0,0.0001689]
[1743174579885,0.15676555,84152.0,84151.0,0.0001689]
[1743174580314,0.2990064,84152.0,84151.0,0.0001689]
[1743174580525,0.59915364,84152.0,84151.0,0.0001689]
[1743174581149,0.57715596,84152.0,84151.0,0.0001689]
[1743174582609,0.81482096,84152.0,84151.0,0.0001689]
[1743174582880,0.83170396,84152.0,84151.0,0.0001689]
[1743174583111,0.549559,84148.0,84147.0,0.0001687]
[1743174583342,0.81671658,84148.0,84147.0,0.0001687]
[1743174583570,0.93097422,84148.0,84147.0,0.0001687]
[1743174585480,0.93597422,84148.0,84147.0,0.0001687]
[1743174585974,0.549583,84140.0,84139.0,0.0001688]
[1743174586221,0.68210046,84140.0,84139.0,0.0001688]
[1743174587588,0.44940146,84140.0,84139.0,0.0001688]
[1743174587834,0.86465631,84140.0,84139.0,0.0001688]
[1743174588342,0.76480046,84140.0,84139.0,0.0001688]
[1743174588584,0.76080046,84140.0,84139.0,0.0001688]
[1743174588824,0.76580046,84140.0,84139.0,0.0001688]
[1743174589299,0.78476699,84140.0,84139.0,0.0001688]
[1743174589732,0.78976699,84140.0,84139.0,0.0001688]
[1743174590504,0.79476699,84140.0,84139.0,0.0001688]
[1743174591009,0.78976699,84140.0,84139.0,0.0001688]
[1743174591260,0.78288299,84140.0,84139.0,0.0001688]
[1743174591515,0.46648399,84140.0,84139.0,0.0001688]
[1743174591761,0.88418399,84140.0,84139.0,0.0001688]
[1743174592001,0.56964314,84140.0,84139.0,0.0001688]
[1743174592477,0.86964314,84140.0,84139.0,0.2497548]
[1743174592741,0.56964314,84140.0,84139.0,0.2497548]
[1743174593031,0.56464314,84140.0,84139.0,0.2497548]
[1743174593266,0.86464314,84140.0,84139.0,0.2497548]
[1743174593521,0.85964314,84140.0,84139.0,0.2497548]
[1743174594013,0.86264314,84140.0,84139.0,0.2497548]
[1743174594541,0.0356855,84140.0,84139.0,0.2497548]
[1743174595079,0.03196653,84140.0,84139.0,0.0001688]
[1743174596001,0.14622417,84140.0,84139.0,0.0001688]
[1743174596226,0.46456562,84140.0,84139.0,0.0001688]
[1743174596467,0.4499432,84140.0,84139.0,0.0001688]
[1743174597143,0.4499432,84140.0,84139.0,0.2497548]
[1743174597553,0.4499432,84140.0,84139.0,0.0001688]
[1743174598209,0.44622417,84140.0,84139.0,0.0001688]
[1743174598541,0.44993734,84140.0,84139.0,0.0001688]
[1743174602209,0.44993734,84140.0,84139.0,0.2497548]
[1743174602412,0.44622417,84140.0,84139.0,0.2497548]
[1743174602843,0.0356797,84140.0,84139.0,0.2497548]
[1743174603218,0.03196653,84140.0,84139.0,0.2497548]
[1743174604107,0.02896653,84140.0,84139.0,0.2497548]
[1743174604426,0.02596653,84140.0,84139.0,0.2497548]
[1743174604625,0.03096653,84140.0,84139.0,0.2497548]
[1743174605426,0.03096653,84140.0,84139.0,0.0001688]
[1743174605661,0.03096653,84140.0,84139.0,0.2497548]
[1743174607001,0.03096653,84140.0,84139.0,0.0001688]
[1743174607403,0.44522417,84140.0,84139.0,0.0001688]
[1743174607567,0.49345075,84140.0,84139.0,0.0001688]
[1743174608333,0.44892833,84140.0,84139.0,0.0001688]
[1743174609088,0.71305218,84140.0,84139.0,0.0001688]
[1743174609303,0.249603,84134.0,84115.0,0.011888]
[1743174609513,0.31454085,84132.0,84114.0,0.237771]
[1743174609712,0.011885,84138.0,84114.0,0.237771]
[1743174609713,0.31454085,84130.0,84120.0,0.011887]
[1743174609942,0.31454085,84130.0,84123.0,0.237746]
[1743174609943,0.11425764,84129.0,84123.0,0.237746]
[1743174610151,0.50601342,84140.0,84139.0,0.237701]
[1743174610152,0.007,84140.0,84139.0,0.237701]
[1743174610483,0.005,84140.0,84139.0,0.249586]
[1743174610614,0.001,84134.0,84123.0,0.094687]
[1743174610814,0.11432619,84140.0,84131.0,0.237723]
[1743174610815,0.1171104,84133.0,84131.0,0.237723]
[1743174611018,0.11425764,84133.0,84132.0,0.237721]
[1743174611219,0.11425764,84133.0,84132.0,0.249607]
[1743174611628,0.02430442,84140.0,84139.0,0.249586]
[1743174612192,3.5e-07,84148.0,84147.0,0.237679]
[1743174612392,8.3e-07,84169.0,84164.0,0.249512]
[1743174612593,0.00015769,84190.0,84187.0,0.237565]
[1743174612941,0.11425764,84188.0,84173.0,0.01188]
[1743174613123,0.20936822,84200.0,84173.0,0.01188]
[1743174613124,0.035693,84216.0,84192.0,0.011877]
[1743174613365,3.5e-07,84205.0,84204.0,0.249393]
[1743174613570,3.5e-07,84205.0,84204.0,0.36365064]
[1743174613748,0.0234957,84211.0,84210.0,0.249376]
[1743174614173,0.02357496,84211.0,84210.0,0.249376]
[1743174615167,7.926e-05,84211.0,84210.0,0.249376]
[1743174615380,0.00307926,84211.0,84210.0,0.36363364]
[1743174615603,0.02433169,84223.0,84210.0,0.36363364]
[1743174615604,0.0815,84271.0,84231.0,0.011872]
[1743174615819,0.05957057,84325.0,84231.0,0.011872]
[1743174615820,17.613172,84251.0,84250.0,0.249257]
[1743174616026,17.613172,84251.0,84250.0,0.36351464]
[1743174616027,16.551197,84251.0,84250.0,0.36351464]
[1743174616231,16.004582,84251.0,84250.0,0.57869264]
[1743174616441,16.004582,84251.0,84250.0,0.249257]
[1743174616648,16.004582,84251.0,84244.0,0.01187]
[1743174616649,16.00502645,84251.0,84233.0,0.237436]
[1743174616876,0.01187,84239.0,84210.0,0.22900674]
[1743174617104,0.23608426,84250.0,84227.0,0.237453]
[1743174617105,0.00285276,84244.0,84227.0,0.237453]
[1743174617313,0.3,84242.0,84227.0,0.011872]
[1743174617540,0.11425764,84241.0,84231.0,0.237442]
[1743174617773,0.005,84232.0,84231.0,0.249314]
[1743174617976,16.00502645,84251.0,84250.0,0.011869]
[1743174618202,16.00502645,84251.0,84250.0,0.006869]
[1743174618644,16.00502645,84251.0,84231.0,0.011872]
[1743174618857,0.002,84241.0,84238.0,0.249291]
[1743174619061,16.00502645,84251.0,84237.0,0.011871]
[1743174619293,0.11425764,84250.0,84242.0,0.237411]
[1743174619551,0.11425764,84250.0,84242.0,0.249278]
[1743174619763,16.00502645,84251.0,84245.0,0.01187]
[1743174619973,16.00702645,84251.0,84249.0,0.249257]
[1743174620189,16.00702645,84251.0,84250.0,0.011869]
[1743174620853,16.00702645,84251.0,84250.0,0.12612664]
[1743174621312,16.00802645,84251.0,84250.0,0.12612664]
[1743174621513,16.00702645,84251.0,84250.0,0.12612664]
[1743174621720,16.00502645,84251.0,84250.0,0.012869]
[1743174622983,16.00602645,84251.0,84250.0,0.012869]
[1743174624718,16.00602645,84251.0,84250.0,0.12612664]
[1743174625120,15.45060545,84251.0,84250.0,0.12712664]
[1743174625303,13.73373845,84251.0,84250.0,1.56994764]
[1743174625547,12.61508345,84251.0,84250.0,0.42712664]
[1743174625775,12.61508345,84251.0,84250.0,1.04628549]
[1743174625984,12.61525215,84251.0,84250.0,1.04628549]
[1743174626417,12.61525215,84251.0,84250.0,1.03174464]
[1743174626830,12.61525215,84251.0,84250.0,1.11211148]
[1743174626831,11.40716615,84251.0,84250.0,1.11211148]
[1743174627101,8.08982515,84251.0,84250.0,1.11211148]
[1743174627370,2.69996015,84251.0,84250.0,1.13841148]
[1743174627623,1.94600026,84251.0,84250.0,1.13841148]
[1743174627868,0.0003378,84310.0,84299.0,0.011862]
[1743174628115,0.0003378,84310.0,84296.0,0.011862]
[1743174628116,0.0003378,84310.0,84306.0,0.11425764]
[1743174628393,0.00047115,84310.0,84306.0,0.11425764]
[1743174628648,0.00047115,84310.0,84306.0,0.06425764]
[1743174629130,0.00047115,84310.0,84302.0,0.01452886]
[1743174629131,0.00047115,84310.0,84309.0,0.11425764]
[1743174629362,0.00047115,84310.0,84309.0,3.28024568]
[1743174629620,0.00047115,84310.0,84309.0,2.82884049]
[1743174629857,0.00047115,84310.0,84309.0,0.41425764]
[1743174630340,0.00047115,84310.0,84309.0,0.68971864]
[1743174630596,0.00047115,84310.0,84309.0,0.11425764]
[1743174631075,0.00047115,84310.0,84306.0,0.002]
[1743174631553,0.00047115,84310.0,84307.0,0.11425764]
[1743174631799,0.01044075,84309.0,84308.0,0.00237191]
[1743174632032,0.00047115,84310.0,84309.0,0.004]
[1743174632270,0.00047115,84310.0,84309.0,0.006]
[1743174632553,0.00047115,84310.0,84293.0,0.249128]
[1743174632821,0.01130749,84310.0,84307.0,0.002]
[1743174633101,0.01093564,84309.0,84307.0,0.001]
[1743174633376,0.01093564,84309.0,84294.0,0.11425764]
[1743174633617,0.01093564,84309.0,84276.0,0.011865]
[1743174633880,0.00285276,84321.0,84309.0,0.001]
[1743174634124,0.02383909,84311.0,84309.0,0.001]
[1743174634326,0.00285276,84310.0,84309.0,0.001]
[1743174634531,0.02383909,84311.0,84309.0,0.001]
[1743174634771,0.00910046,84310.0,84309.0,0.001]
[1743174634968,0.01195322,84310.0,84293.0,0.002]
[1743174635202,0.00910046,84310.0,84293.0,0.00213335]
[1743174635831,0.00910046,84310.0,84293.0,0.00013335]
[1743174636015,0.002,84309.0,84294.0,0.11425764]
[1743174636281,0.002,84309.0,84293.0,0.00013335]
[1743174636480,0.00285276,84308.0,84293.0,0.00013335]
[1743174636684,0.01192061,84308.0,84293.0,0.00013335]
[1743174636904,0.00285276,84308.0,84293.0,0.00013335]
[1743174637120,0.12332549,84307.0,84293.0,0.00013335]
[1743174637342,0.01454085,84305.0,84293.0,0.00013335]
[1743174637545,0.11425764,84304.0,84293.0,0.00013335]
[1743174637788,0.12332361,84304.0,84293.0,0.00013335]
[1743174638035,0.00906597,84304.0,84293.0,0.00013335]
[1743174638243,0.0239434,84297.0,84293.0,0.00013335]
[1743174638491,0.0454,84306.0,84293.0,0.00013335]
[1743174638710,0.0090248,84296.0,84293.0,0.00013335]
[1743174638934,0.0472,84320.0,84294.0,0.11425764]
[1743174639149,0.0090248,84295.0,84294.0,1.21385764]
[1743174639362,0.0806,84334.0,84294.0,1.21385764]
[1743174639363,0.005,84304.0,84300.0,0.237245]
[1743174639584,0.005,84304.0,84303.0,0.44065949]
[1743174639829,0.0001689,84335.0,84309.0,0.549083]
[1743174640042,0.0001689,84335.0,84309.0,0.66334064]
[1743174640254,0.0001689,84335.0,84309.0,0.61732864]
[1743174640465,0.0001689,84335.0,84309.0,0.56406649]
[1743174640733,0.0001689,84335.0,84309.0,0.55220549]
[1743174640989,0.0001689,84335.0,84309.0,0.41425764]
[1743174641224,0.00302166,84335.0,84309.0,0.41425764]
[1743174641902,0.0011686,84310.0,84309.0,0.005]
[1743174642634,0.0011686,84310.0,84309.0,0.002]
[1743174642881,0.00753524,84310.0,84309.0,0.004]
[1743174643120,0.0011686,84310.0,84309.0,0.004]
[1743174643365,0.00753524,84310.0,84309.0,0.002]
[1743174643672,0.00753524,84310.0,84293.0,0.01199635]
[1743174643673,0.0001686,84310.0,84298.0,0.237253]
[1743174643768,0.0001686,84310.0,84309.0,0.002]
[1743174644027,0.0001686,84310.0,84309.0,0.11625764]
[1743174644267,0.0021686,84310.0,84309.0,0.36334064]
[1743174644511,0.00196229,84310.0,84309.0,0.66434064]
[1743174644997,0.00196229,84310.0,84309.0,1.58746264]
[1743174645233,0.00196229,84310.0,84309.0,1.76366964]
[1743174645479,0.0001689,84335.0,84313.0,0.237208]
[1743174645715,0.0001689,84335.0,84315.0,0.237204]
[1743174645949,0.0001689,84335.0,84316.0,0.11662906]
[1743174646411,0.0001689,84335.0,84316.0,0.35383106]
[1743174646628,0.0001689,84335.0,84316.0,0.11425764]
[1743174646839,0.0001689,84335.0,84316.0,0.11662906]
[1743174647053,0.0001689,84335.0,84320.0,0.22900674]
[1743174647261,0.0001689,84335.0,84321.0,0.11662906]
[1743174647470,0.0001689,84335.0,84321.0,0.11425764]
[1743174647679,0.0001689,84335.0,84322.0,0.00237142]
[1743174647918,0.0001689,84335.0,84326.0,0.011858]
[1743174648156,0.0001689,84335.0,84332.0,0.237157]
[1743174648409,0.0451,84372.0,84334.0,0.74076664]
[1743174648684,0.0451,84372.0,84360.0,0.22900674]
[1743174648957,0.04554409,84372.0,84360.0,0.11425764]
[1743174649198,0.00285276,84371.0,84330.0,0.237161]
[1743174649434,0.12344469,84371.0,84342.0,0.01440561]
[1743174649672,0.1171104,84371.0,84343.0,0.35138264]
[1743174649915,0.02338972,84363.0,84339.0,0.3]
[1743174650168,0.0752,84362.0,84340.0,0.11425764]
[1743174650868,0.0093961,84361.0,84332.0,0.3]
[1743174651056,0.00285276,84361.0,84334.0,0.3]
[1743174651357,0.00285276,84361.0,84335.0,0.11425764]
[1743174651633,0.0482,84359.0,84333.0,0.0142714]
[1743174651874,0.1171104,84358.0,84340.0,0.001]
[1743174652121,0.01454085,84357.0,84314.0,0.01186]
[1743174652351,0.0240193,84346.0,84315.0,0.11425764]
[1743174652608,0.0240193,84346.0,84323.0,0.011859]
[1743174652866,0.0240193,84346.0,84324.0,0.1166291]
[1743174653823,0.11425764,84356.0,84326.0,0.237174]
[1743174654083,0.11425764,84356.0,84327.0,0.11662898]
[1743174654338,0.0093961,84355.0,84324.0,0.001]
[1743174654580,0.02343248,84347.0,84324.0,0.003]
[1743174654787,0.3,84339.0,84324.0,0.003]
[1743174654997,0.1171104,84338.0,84324.0,0.001]
[1743174655221,0.12080098,84338.0,84324.0,0.001]
[1743174655446,0.12080098,84338.0,84309.0,0.237222]
[1743174655656,0.00654334,84338.0,84321.0,0.011859]
[1743174655864,0.00654334,84338.0,84318.0,0.011859]
[1743174655865,0.00654334,84338.0,84322.0,0.11425764]
[1743174656070,0.1252,84346.0,84322.0,0.11662912]
[1743174656275,0.02193031,84337.0,84309.0,0.25137288]
[1743174656499,0.02193031,84337.0,84313.0,0.237209]
[1743174656723,0.02193031,84337.0,84324.0,0.002]
[1743174657133,0.00657883,84336.0,84316.0,0.237202]
[1743174657342,0.02850914,84336.0,84321.0,0.237187]
[1743174657551,0.02193031,84336.0,84322.0,0.11425764]
[1743174657822,0.02237413,84336.0,84322.0,0.11662912]
[1743174658081,0.02237413,84336.0,84324.0,0.003]
[1743174658319,0.0472,84334.0,84306.0,0.0003372]
[1743174658559,0.11425764,84333.0,84306.0,0.0003372]
[1743174658761,0.0827,84332.0,84310.0,0.001]
[1743174658983,0.08929163,84332.0,84311.0,0.11662955]
[1743174659407,0.08929163,84332.0,84313.0,0.23721]
[1743174659610,0.08929163,84332.0,84321.0,0.003]
[1743174660024,0.08929163,84332.0,84311.0,0.11425764]
[1743174660233,0.08929163,84332.0,84313.0,0.01186]
[1743174660441,0.08929163,84332.0,84311.0,0.001]
[1743174660646,0.1171104,84331.0,84324.0,0.008399]
[1743174660831,0.12084927,84331.0,84324.0,0.008399]
[1743174661283,0.31739361,84330.0,84324.0,0.008399]
[1743174661491,0.31739361,84330.0,84278.0,0.011865]
[1743174661492,0.01454085,84319.0,84269.0,0.011866]
[1743174661701,0.01454085,84317.0,84289.0,0.237278]
[1743174661906,0.1171104,84316.0,84267.0,0.025]
[1743174662115,0.12347701,84316.0,84290.0,0.01395688]
[1743174662328,0.31454085,84315.0,84310.0,0.0003372]
[1743174662535,0.00636661,84316.0,84310.0,0.0003372]
[1743174662743,0.00630576,84314.0,84310.0,0.0003372]
[1743174662959,0.1291,84318.0,84310.0,0.0003372]
[1743174663177,0.00630576,84313.0,84312.0,0.237213]
[1743174663401,0.0474,84318.0,84312.0,0.11425764]
[1743174663620,0.0775,84330.0,84313.0,0.35383433]
[1743174663827,0.00285276,84329.0,84310.0,0.0003372]
[1743174664030,0.00634392,84329.0,84310.0,0.0003372]
[1743174664251,0.00919668,84329.0,84310.0,0.0003372]
[1743174664468,0.12060156,84329.0,84310.0,0.0003372]
[1743174664672,0.1171104,84328.0,84310.0,0.0003372]
[1743174664878,0.1171104,84328.0,84312.0,0.002]
[1743174665115,0.002,84318.0,84312.0,0.002]
[1743174665348,0.2430104,84317.0,84312.0,0.002]
[1743174665564,0.24653504,84317.0,84312.0,0.002]
[1743174665771,0.24653504,84317.0,84310.0,0.0003372]
[1743174666168,0.02347742,84316.0,84310.0,0.0003372]
[1743174666641,0.00635096,84315.0,84310.0,0.0003372]
[1743174667082,0.1259,84317.0,84310.0,0.0003372]
[1743174667293,0.00633501,84314.0,84310.0,0.0003372]
[1743174667724,0.1379,84317.0,84310.0,0.0003372]
[1743174667932,0.00633501,84313.0,84310.0,0.0003372]
[1743174668141,0.1379,84317.0,84310.0,0.0003372]
[1743174668351,0.00635244,84312.0,84310.0,0.0003372]
[1743174668562,0.1379,84317.0,84310.0,0.0003372]
[1743174668781,0.00635244,84311.0,84310.0,0.0003372]
[1743174668998,0.00635244,84311.0,84310.0,0.66367384]
[1743174669249,0.002,84317.0,84316.0,0.01186]
[1743174669466,0.002,84317.0,84316.0,0.66331964]
[1743174669679,0.00061242,84336.0,84320.0,0.3]
[1743174669890,0.00061242,84336.0,84321.0,0.11425764]
[1743174670098,0.00061242,84336.0,84322.0,0.27405908]
[1743174670307,0.00061242,84336.0,84323.0,0.15113272]
[1743174670544,0.00061242,84336.0,84323.0,0.11425764]
[1743174670986,0.00061242,84336.0,84324.0,0.00237139]
[1743174671195,0.00061242,84336.0,84325.0,0.11425764]
[1743174671408,0.00061242,84336.0,84326.0,0.00237131]
[1743174671620,0.00061242,84336.0,84326.0,0.11662895]
[1743174671830,0.00061242,84336.0,84320.0,0.3]
[1743174672058,0.00061242,84336.0,84323.0,0.001]
[1743174672276,0.00061242,84336.0,84332.0,0.011857]
[1743174672484,0.00061242,84336.0,84333.0,0.11425764]
[1743174672693,0.00061242,84336.0,84335.0,0.537149]
[1743174672910,0.00061242,84336.0,84335.0,0.66326364]
[1743174673167,0.00161242,84336.0,84335.0,0.66326364]
[1743174673373,0.00161242,84336.0,84335.0,0.70015256]
[1743174673594,0.00061242,84336.0,84335.0,1.24338768]
[1743174673798,0.00061242,84336.0,84335.0,0.48661168]
[1743174674241,0.00061242,84336.0,84335.0,0.45172276]
[1743174674617,0.00061242,84336.0,84335.0,0.44972276]
[1743174674834,0.00161242,84336.0,84335.0,2.18671376]